fUSD/lending_fUSD_20240422
["ID","MTS","AMOUNT","RATE_DAILY","PERIOD"]
[323179047,1713778238510,-661.94026059,0.00013189,2]
[323179052,1713778238541,-15774.02220909,0.00013189,2]
[323179054,1713778238552,-769.96443153,0.00013189,2]
[323179058,1713778238577,-311.184893,0.00013189,2]
[323179064,1713778238626,-271104.40350987,0.00013189,2]
[323179066,1713778238641,-3635.759042,0.00013189,2]
[323179118,1713778240181,-805.99237453,0.00013189,2]
[323179119,1713778240362,-513.66183196,0.00013189,2]
[323179179,1713778243224,-423.8437,0.00013189,2]
[323179180,1713778243294,-63687.31917843,0.00013189,2]
[323179181,1713778243392,-161479.76890152,0.00013189,2]
[323179195,1713778243682,-50581.21292074,0.00013189,2]
[323179234,1713778244084,250.0,0.00012601,2]
[323179246,1713778246605,-192.13859571,0.000131,2]
[323179247,1713778246615,-827.14483097,0.00013189,2]
[323179248,1713778247663,10.94265944,0.00010837,2]
[323179249,1713778247687,261.59734056,0.00010837,2]
[323179250,1713778254735,1268.57132451,0.000127,10]
[323179251,1713778265511,10854.69,0.000224,30]
[323179252,1713778269269,1268.57132451,0.000127,10]
[323179254,1713778284604,198.87,0.00012599,2]
[323179255,1713778284785,198.87,0.00012603,2]
[323179256,1713778284963,198.87,0.00012606,2]
[323179257,1713778285186,198.87,0.00012609,2]
[323179258,1713778285387,198.87,0.00012613,2]
[323179259,1713778285671,198.87,0.00012616,2]
[323179260,1713778285812,198.87,0.00012619,2]
[323179261,1713778286026,198.87,0.00012622,2]
[323179262,1713778286305,198.87,0.00012626,2]
[323179263,1713778286443,198.87,0.00012629,2]
[323179264,1713778286673,198.87,0.00012632,2]
[323179265,1713778286735,1268.57132451,0.000127,10]
[323179266,1713778286881,198.87,0.00012636,2]
[323179267,1713778287087,198.87,0.00012639,2]
[323179268,1713778287540,198.87,0.00012642,2]
[323179269,1713778287894,198.87,0.00012646,2]
[323179270,1713778288102,198.87,0.00012649,2]
[323179271,1713778288313,198.87,0.00012652,2]
[323179272,1713778288530,198.87,0.00012656,2]
[323179273,1713778288744,158.74265944,0.00012659,2]
[323179274,1713778288765,40.12734056,0.00012659,2]
[323179275,1713778288948,198.87,0.00012662,2]
[323179276,1713778297325,169.3,0.00012679,2]
[323179277,1713778306737,1268.57132451,0.000127,10]
[323179278,1713778320456,1511.10355981,0.00013698,14]
[323179279,1713778332758,1268.57132451,0.000127,10]
[323179280,1713778352760,1268.57132451,0.00013698,10]
[323179281,1713778372780,654.98212337,0.00013698,10]
[323179282,1713778402909,173.66,0.0001248,2]
[323179283,1713778428073,200.0,0.00013698,10]
[323179284,1713778428808,200.0,0.00013972,10]
[323179285,1713778429036,200.0,0.00014246,10]
[323179286,1713778429214,200.0,0.0001452,10]
[323179287,1713778429338,200.0,0.00014794,10]
[323179288,1713778429472,200.0,0.00015068,10]
[323179289,1713778429657,200.0,0.00015342,10]
[323179290,1713778429923,200.0,0.00015616,10]
[323179291,1713778430875,200.0,0.0001589,10]
[323179292,1713778492040,561.31,0.00012282,2]
[323179295,1713778538430,151.65,9.844e-05,2]
[323179298,1713778573342,654.64,0.00012245,2]
[323179300,1713778588113,150.0,0.00015,15]
[323179305,1713778679278,848.73,0.00012259,2]
[323179308,1713778730416,298.71,0.00010405,2]
[323179309,1713778730611,298.71,0.00012669,2]
[323179315,1713778748168,297.88518515,0.00012697,2]
[323179316,1713778771050,169.3,0.00012385,2]
[323179317,1713778803759,-684.11075626,0.00012754,2]
[323179318,1713778803785,-265.44673358,0.00012755,2]
[323179319,1713778803812,-539.2329759,0.00012756,2]
[323179320,1713778803841,-1776.49143919,0.00012756,2]
[323179321,1713778803871,-363.73256176,0.00012756,2]
[323179322,1713778803897,-297.88518515,0.00012757,2]
[323179323,1713778803922,-17873.10034816,0.00012793,2]
[323179326,1713778873091,150.0,0.00015,15]
[323179327,1713778873237,137.10747429,0.00012337,2]
[323179328,1713778873262,13.11252571,0.00012337,2]
[323179330,1713778972857,200.0,0.0001229,2]
[323179331,1713778994753,550.95,0.00012268,2]
[323179335,1713779048246,652.5,0.00012203,2]
[323179336,1713779052970,162.32971133,0.0001268,2]
[323179339,1713779158448,150.0,0.00015,15]
[323179340,1713779175694,565.48,0.00012141,2]
[323179355,1713779267051,169.3,0.00012255,2]
[323179356,1713779294156,268.83,0.00010265,2]
[323179357,1713779294376,268.83,0.00012529,2]
[323179358,1713779320398,5025.0,0.0002711,120]
[323179361,1713779363602,162.32971133,0.00012642,2]
[323179363,1713779403795,162.69,0.0001216,2]
[323179393,1713779432636,-1105.79495962,0.00012738,2]
[323179394,1713779432693,-138.61354548,0.00012738,2]
[323179395,1713779432702,-3510.21981913,0.00012738,2]
[323179396,1713779432712,-265.44673358,0.00012739,2]
[323179397,1713779432721,-4728.74899769,0.00012739,2]
[323179398,1713779432731,-313.74231263,0.0001274,2]
[323179399,1713779432740,-1019.36211525,0.00012742,2]
[323179400,1713779432750,-162.32971133,0.00012826,2]
[323179401,1713779432760,-150.0,0.00012916,2]
[323179402,1713779432770,-749.2339,0.00012917,2]
[323179403,1713779432779,-3832.23185982,0.00012917,2]
[323179404,1713779432791,-1054.71998718,0.00012917,2]
[323179405,1713779432848,-1062.27670681,0.00012917,2]
[323179406,1713779432859,-16404.77235671,0.00012917,2]
[323179407,1713779432870,-865.60030812,0.00012917,2]
[323179408,1713779432882,-1599.89508136,0.00012917,2]
[323179409,1713779432891,-150.99,0.00012926,2]
[323179410,1713779432900,-499.99,0.00012984,2]
[323179411,1713779432909,-150.99,0.00012988,2]
[323179412,1713779432921,-1000.0,0.00012988,2]
[323179413,1713779432930,-209.946,0.00012989,2]
[323179414,1713779432939,-3681.3596,0.00012989,2]
[323179415,1713779432949,-3728.411,0.00012989,2]
[323179416,1713779432959,-5000.0,0.00013,2]
[323179417,1713779432968,-1145.1652,0.0001307,2]
[323179418,1713779432977,-601.7962,0.00013087,2]
[323179419,1713779432986,-1000.0,0.00013088,2]
[323179420,1713779432995,-25526.2579,0.00013088,2]
[323179429,1713779433219,-99.28218055,0.00013089,2]
[323179430,1713779433313,-5179.960867,0.00013089,2]
[323179431,1713779434210,-715.75595245,0.00013089,2]
[323179432,1713779434219,-1000.0,0.00013089,2]
[323179433,1713779434229,-2741.81815633,0.00013089,2]
[323179434,1713779434240,-538.41443529,0.00013089,2]
[323179435,1713779434252,-2264.89041884,0.00013089,2]
[323179436,1713779434290,-594.75831664,0.00013089,2]
[323179437,1713779434301,-688.81808505,0.00013089,2]
[323179439,1713779438533,-3171.30058785,0.00013089,2]
[323179440,1713779438543,-44485.8886,0.00013089,2]
[323179441,1713779438552,-1875.5033,0.00013089,2]
[323179442,1713779438561,-291.73264187,0.00013089,2]
[323179443,1713779438569,-11992.43566932,0.00013089,2]
[323179444,1713779438578,-3220.39895451,0.00013089,2]
[323179445,1713779438588,-450.55130149,0.00013089,2]
[323179446,1713779438597,-292.62567229,0.00013089,2]
[323179447,1713779438606,-10956.355,0.000131,2]
[323179448,1713779438615,-11054.3801084,0.000131,2]
[323179449,1713779438624,-1145.16519,0.0001311,2]
[323179450,1713779438634,-1145.1652,0.0001315,2]
[323179451,1713779438643,-1145.16519,0.0001318,2]
[323179452,1713779438652,-3876.22251745,0.00013187,2]
[323179453,1713779438662,-1066.05041716,0.00013187,2]
[323179454,1713779438674,-1228.86541044,0.00013187,2]
[323179455,1713779438683,-1774.88051413,0.00013187,2]
[323179456,1713779438693,-683.19698617,0.00013187,2]
[323179457,1713779438702,-1292.44018087,0.00013187,2]
[323179459,1713779438712,-494.56653924,0.00013187,2]
[323179461,1713779438725,-709.78541386,0.00013188,2]
[323179463,1713779438735,-155.0,0.00013188,2]
[323179466,1713779438744,-18084.13170363,0.00013188,2]
[323179468,1713779438754,-109150.04493216,0.00013189,2]
[323179471,1713779439488,-3606.45802201,0.00013189,2]
[323179472,1713779439500,-1398.0469324,0.00013189,2]
[323179473,1713779439511,-370.96436731,0.00013189,2]
[323179474,1713779439545,-843.53623725,0.00013189,2]
[323179475,1713779439595,-468.50164004,0.00013189,2]
[323179476,1713779439606,-42210.96868485,0.00013189,2]
[323179477,1713779439617,-369.90456315,0.00013189,2]
[323179478,1713779439649,-65488.89437214,0.00013189,2]
[323179479,1713779439661,-384.59479513,0.00013189,2]
[323179529,1713779440627,-488.73793469,0.00013189,2]
[323179530,1713779440707,-1333569.85698144,0.00013189,2]
[323179531,1713779440735,-3441.23070896,0.00013189,2]
[323179532,1713779440748,-2538.91574306,0.00013189,2]
[323179552,1713779443432,-500.92638977,0.00013189,2]
[323179553,1713779443491,-13189.424,0.00013189,2]
[323179554,1713779443503,-429421.45437196,0.00013189,2]
[323179555,1713779443674,-62972.54783639,0.00013189,2]
[323179556,1713779443726,-33020.8006,0.00013189,2]
[323179557,1713779443737,-2967.24275815,0.00013189,2]
[323179565,1713779446472,-7.50750561,0.00013188,2]
[323179566,1713779446483,-378.25350976,0.00013188,2]
[323179567,1713779446495,-462.324941,0.00013188,2]
[323179568,1713779446504,-482773.41965606,0.00013189,2]
[323179569,1713779446539,-77889.68589916,0.00013189,2]
[323179570,1713779446580,-379664.13499196,0.00013189,2]
[323179571,1713779446634,-890.11138155,0.00013189,2]
[323179572,1713779446645,-264.168906,0.00013189,2]
[323179576,1713779497978,1063.88354743,0.00011,2]
[323179579,1713779516083,15012.0,0.00015,10]
[323179584,1713779564585,559.24,0.00012373,2]
[323179585,1713779577969,1751.1332491,0.00015,14]
[323179588,1713779583521,2376.87645257,0.00012373,2]
[323179589,1713779583546,4000.0,0.00012373,2]
[323179590,1713779583569,1041.77354743,0.00012373,2]
[323179591,1713779631621,171.01992283,0.00013698,10]
[323179592,1713779638729,1088.54,0.00012254,2]
[323179594,1713779660591,200.0,0.00012254,2]
[323179606,1713779690530,250.0,0.00012248,2]
[323179610,1713779724999,150.0,0.00015,15]
[323179616,1713779749060,175.64684689,0.000271,120]
[323179617,1713779751951,177.13,0.00012288,2]
[323179619,1713779781294,165.32,0.00012182,2]
[323179625,1713779850673,1077.23645257,0.000122,2]
[323179626,1713779850695,4000.0,0.000122,2]
[323179627,1713779850716,836.75354743,0.000122,2]
[323179629,1713779864804,276.48,0.00010282,2]
[323179630,1713779865027,276.48,0.00012546,2]
[323179651,1713779948829,2610.28645257,0.00012,2]
[323179652,1713779948853,2483.95149418,0.00012,2]
[323179669,1713780055748,552.6,0.00012121,2]
[323179672,1713780075673,9179.22619712,0.00012781,7]
[323179678,1713780092090,2374.40599978,0.00012527,7]
[323179679,1713780099357,186.59617847,0.00012527,2]
[323179681,1713780116536,1000.25,0.00027,120]
[323179689,1713780216840,1000.0,0.00027,120]
[323179690,1713780222088,247.28,0.00012131,2]
[323179774,1713780236075,529.57232735,0.00012145,2]
[323179775,1713780236097,195.78767265,0.00012145,2]
[323179776,1713780338399,408.48862747,0.00012145,2]
[323179777,1713780339112,345.54675953,0.00012145,2]
[323179778,1713780339189,288.42932357,0.00012145,2]
[323179779,1713780339616,183.81215809,0.00011868,2]
[323179780,1713780339869,155.0,0.00011868,2]
[323179781,1713780341225,361.23601401,0.00012145,2]
[323179782,1713780341344,943.06160751,0.00012145,2]
[323179783,1713780341881,197.90939498,0.00012145,2]
[323179784,1713780342539,513.53075629,0.00012,2]
[323179785,1713780342676,155.1346824,0.00012145,2]
[323179786,1713780343230,252.0630035,9.716e-05,2]
[323179787,1713780343251,293.78425278,9.716e-05,2]
[323179788,1713780343544,173.04930782,0.00012145,2]
[323179789,1713780344961,156.19509503,0.00011868,2]
[323179790,1713780345442,1050.0,0.00012145,2]
[323179791,1713780346029,1662.76822253,0.00012145,2]
[323179792,1713780346352,664.20312184,0.00012144,2]
[323179793,1713780346375,609.25312056,0.00012144,2]
[323179794,1713780347383,344.30138098,0.00012145,2]
[323179795,1713780350046,319.95927235,0.00012145,2]
[323179796,1713780351064,797.27546289,0.00012527,2]
[323179797,1713780353265,365.73222347,0.00012145,2]
[323179798,1713780354580,749.39614139,0.00011868,2]
[323179799,1713780355102,288.91736774,0.00012145,2]
[323179800,1713780355807,157.10515557,0.00011868,2]
[323179801,1713780358597,360.90670085,0.00012145,2]
[323179802,1713780360242,7.1531742,0.00010227,2]
[323179803,1713780360264,1758.7368258,0.00010227,2]
[323179804,1713780360412,408.9904662,0.00012145,2]
[323179805,1713780360455,1765.89,0.00012491,2]
[323179806,1713780360703,66.382708,0.00012145,2]
[323179807,1713780360725,876.67889951,0.00012145,2]
[323179808,1713780361210,545.84725628,9.716e-05,2]
[323179809,1713780362476,239.10155478,0.00012145,2]
[323179810,1713780367459,866.30224394,0.00012145,2]
[323179811,1713780368047,319.95927235,0.00012145,2]
[323179812,1713780373993,749.39614139,0.00011868,2]
[323179813,1713780376697,402.71463175,0.00012145,2]
[323179814,1713780376720,540.34697576,0.00012145,2]
[323179815,1713780381223,196.62695709,9.716e-05,2]
[323179816,1713780386032,866.30224394,0.00012145,2]
[323179817,1713780386304,150.0,0.00027111,120]
[323179818,1713780387092,155.03,0.00012098,2]
[323179819,1713780387283,155.03,0.00012113,2]
[323179820,1713780387494,155.03,0.00012128,2]
[323179821,1713780387733,155.03,0.00012143,2]
[323179822,1713780387953,155.03,0.00012158,2]
[323179823,1713780388049,319.95927235,0.00012145,2]
[323179824,1713780388535,179.90935934,0.00011868,2]
[323179825,1713780394711,943.06160751,0.00012145,2]
[323179826,1713780404026,178.64358401,0.00012145,2]
[323179827,1713780404046,687.65865993,0.00012145,2]
[323179828,1713780404392,1470.0856,0.00012674,2]
[323179829,1713780408050,319.95927235,0.00012145,2]
[323179831,1713780414702,943.06160751,0.00012145,2]
[323179832,1713780415112,579.23486021,0.00012682,2]
[323179833,1713780415132,157.85543979,0.00012682,2]
[323179835,1713780424059,317.6620673,0.00012145,2]
[323179836,1713780428391,866.30224394,0.00012145,2]
[323179837,1713780431138,305.29430304,0.000127,2]
[323179838,1713780437186,600.0,0.00012079,2]
[323179839,1713780439089,943.06160751,0.00012145,2]
[323179840,1713780439212,533.02713653,0.000127,2]
[323179842,1713780444053,276.79720189,0.00012145,2]
[323179843,1713780444075,589.50504205,0.00012145,2]
[323179844,1713780452483,565.34977281,0.000127,2]
[323179845,1713780453659,159.41,9.702e-05,2]
[323179846,1713780454819,944.11461193,0.00012145,2]
[323179848,1713780460809,313.74231263,9.701e-05,2]
[323179849,1713780464308,500.0,0.00012527,2]
[323179851,1713780465090,487.2863411,0.000127,2]
[323179852,1713780465582,440.59191948,0.00012527,2]
[323179853,1713780465605,59.40808052,0.00012527,2]
[323179854,1713780465985,500.0,0.00012527,2]
[323179855,1713780466362,523.0,0.00012527,2]
[323179856,1713780466393,866.30224394,0.00012145,2]
[323179857,1713780466442,207.74230146,0.000127,2]
[323179858,1713780467102,502.0,0.00012527,2]
[323179859,1713780467613,684.11075626,0.000127,2]
[323179860,1713780472489,236.51827636,0.000127,2]
[323179861,1713780474823,420.91834146,0.00012527,2]
[323179862,1713780474844,392.08165854,0.00012527,2]
[323179863,1713780475528,155.0,0.000127,2]
[323179864,1713780478227,378.99134072,0.000127,2]
[323179866,1713780482542,1159.150618,0.00012637,2]
[323179867,1713780482780,306.0,0.00012527,2]
[323179868,1713780487534,866.30224394,0.000127,2]
[323179869,1713780506082,742.4741388,0.000127,2]
[323179870,1713780506104,123.82810514,0.000127,2]
[323179871,1713780509877,903.63,0.00012229,2]
[323179872,1713780522037,866.30224394,0.000127,2]
[323179873,1713780533481,2106.23965092,0.000127,2]
[323179874,1713780533503,4000.0,0.000127,2]
[323179875,1713780533525,4000.0,0.000127,2]
[323179882,1713780631673,-200.0,0.00011947,2]
[323179883,1713780631683,-335.11303773,0.00012151,2]
[323179884,1713780631692,-282.03040671,0.00012151,2]
[323179885,1713780631734,-361.64618133,0.00012151,2]
[323179886,1713780631744,-446.77630277,0.00012152,2]
[323179887,1713780631755,-259.65974397,0.00012152,2]
[323179888,1713780631765,-434.45025602,0.00012153,2]
[323179889,1713780631776,-52.83608508,0.00012153,2]
[323179890,1713780631785,-565.34977281,0.00012153,2]
[323179891,1713780631795,-537.94873719,0.00012153,2]
[323179892,1713780631804,-557.92,0.00012155,2]
[323179893,1713780631813,-175.78,0.00012495,2]
[323179894,1713780631822,-157.10761414,0.000126,2]
[323179895,1713780631832,-157.10761412,0.00012644,2]
[323179896,1713780631841,-157.10761412,0.00012689,2]
[323179897,1713780631851,-5986.68792508,0.000127,2]
[323179900,1713780631874,-1369.71542274,0.000127,2]
[323179901,1713780631884,-240.30437726,0.000127,2]
[323179905,1713780631903,-580.55865504,0.000127,2]
[323179909,1713780631944,-45.43921164,0.000127,2]
[323179910,1713780631954,-157.10761412,0.00012733,2]
[323179911,1713780631962,-150.0,0.00012764,2]
[323179912,1713780631972,-871.51106769,0.00012766,2]
[323179913,1713780631982,-944.77415243,0.00012768,2]
[323179914,1713780631990,-155.58725559,0.00012769,2]
[323179915,1713780631999,-157.10761412,0.00012777,2]
[323179917,1713780632008,-150.0,0.00012789,2]
[323179918,1713780632017,-157.10761412,0.00012822,2]
[323179919,1713780632026,-157.10761412,0.00012866,2]
[323179921,1713780632035,-157.10761412,0.00012911,2]
[323179922,1713780632044,-157.10761412,0.00012955,2]
[323179923,1713780632053,-265.44673358,0.00012986,2]
[323179925,1713780632062,-1000.0,0.00012987,2]
[323179926,1713780632071,-2500.0,0.00012987,2]
[323179927,1713780632080,-11222.2496888,0.00012988,2]
[323179936,1713780637439,-179.61813345,0.00012053,2]
[323179937,1713780637448,-6124.99711145,0.00012988,2]
[323179938,1713780637457,-1867.3006,0.00012989,2]
[323179939,1713780637467,-7662.6945,0.00012989,2]
[323179940,1713780637476,-157.10761412,0.00012999,2]
[323179941,1713780637485,-750.0,0.00013,2]
[323179942,1713780637494,-150.0,0.00013,2]
[323179943,1713780637503,-150.0,0.00013,2]
[323179944,1713780637512,-423.73,0.00013021,2]
[323179945,1713780637521,-499.99,0.00013021,2]
[323179946,1713780637531,-157.10761412,0.00013044,2]
[323179947,1713780637540,-229.03303,0.0001306,2]
[323179948,1713780637549,-1000.0,0.00013085,2]
[323179949,1713780637559,-844.67517406,0.00013085,2]
[323179950,1713780637568,-8042.20647574,0.00013086,2]
[323179951,1713780637577,-500.0,0.00013087,2]
[323179952,1713780637586,-162976.2942,0.00013087,2]
[323179953,1713780637596,-3676.8773,0.00013087,2]
[323179954,1713780637605,-157.10761412,0.00013088,2]
[323179955,1713780637615,-163.5218,0.00013089,2]
[323179956,1713780637625,-10000.0,0.00013089,2]
[323179957,1713780637635,-26754.5568,0.00013089,2]
[323179958,1713780637644,-824.2728,0.00013089,2]
[323179959,1713780637654,-3641.2532,0.00013089,2]
[323179960,1713780637664,-319.1355,0.00013089,2]
[323179961,1713780637673,-10012.6899,0.00013089,2]
[323179962,1713780637683,-300.36753434,0.000131,2]
[323179963,1713780637692,-4656.23361174,0.000131,2]
[323179964,1713780637712,-21596.40641486,0.000131,2]
[323179965,1713780637741,-4333.30055823,0.000131,2]
[323179966,1713780637751,-20132.09373262,0.00013174,2]
[323179967,1713780637760,-242.83254396,0.00013179,2]
[323179968,1713780637770,-242.83254396,0.00013179,2]
[323179969,1713780637779,-242.83254396,0.00013179,2]
[323179970,1713780637788,-111.40950635,0.00013187,2]
[323179975,1713780637864,-2243.26964391,0.00013187,2]
[323179977,1713780637874,-781.07343554,0.00013187,2]
[323179979,1713780637883,-10906.97313569,0.00013187,2]
[323180006,1713780640129,-22593.98312257,0.00013187,2]
[323180007,1713780640138,-37914.87278976,0.00013187,2]
[323180008,1713780640147,-166.84316462,0.00013187,2]
[323180009,1713780640156,-587.32726301,0.00013187,2]
[323180010,1713780640165,-155.0,0.00013187,2]
[323180011,1713780640174,-155.22088071,0.00013187,2]
[323180012,1713780640183,-338.34095941,0.00013187,2]
[323180013,1713780640192,-1240.38328004,0.00013187,2]
[323180014,1713780640201,-155.0,0.00013187,2]
[323180015,1713780640210,-192.70495298,0.00013187,2]
[323180016,1713780640219,-155.0,0.00013187,2]
[323180017,1713780640228,-155.0,0.00013187,2]
[323180018,1713780640238,-444.3911085,0.00013187,2]
[323180019,1713780640248,-155.0,0.00013187,2]
[323180020,1713780640258,-155.0,0.00013187,2]
[323180021,1713780640268,-164.47454881,0.00013187,2]
[323180022,1713780640277,-155.0,0.00013187,2]
[323180023,1713780640288,-255.3668917,0.00013187,2]
[323180024,1713780640297,-203.91934184,0.00013187,2]
[323180025,1713780640307,-343.26553462,0.00013187,2]
[323180026,1713780640317,-314.68762141,0.00013187,2]
[323180027,1713780640327,-525.14605114,0.00013187,2]
[323180028,1713780640336,-305.08497536,0.00013187,2]
[323180029,1713780640346,-313.38784436,0.00013187,2]
[323180030,1713780640356,-683.94482434,0.00013187,2]
[323180031,1713780640367,-207.70034464,0.00013187,2]
[323180032,1713780640377,-419.32847632,0.00013187,2]
[323180033,1713780640387,-217.45154391,0.00013187,2]
[323180034,1713780640398,-14080.72982661,0.00013187,2]
[323180035,1713780640410,-252.97,0.00013187,2]
[323180036,1713780640435,-1356.73969651,0.00013187,2]
[323180037,1713780640573,-1820.58962265,0.00013187,2]
[323180056,1713780642738,-991.42389,0.00013187,2]
[323180057,1713780642749,-5326.372237,0.00013187,2]
[323180058,1713780642761,-70069.62084079,0.00013187,2]
[323180059,1713780642849,-494.24415628,0.00013187,2]
[323180060,1713780642860,-839.10109103,0.00013187,2]
[323180506,1713780647121,-866.30224394,0.000127,2]
[323180508,1713780647130,-17610.68453322,0.00013187,2]
[323180516,1713780647191,-3306.7834662,0.00013187,2]
[323180518,1713780647201,-7775.42153226,0.00013187,2]
[323180520,1713780647210,-917.06616326,0.00013188,2]
[323180524,1713780647243,-323.28165862,0.00013188,2]
[323180526,1713780647252,-42096.73928043,0.00013189,2]
[323180529,1713780647263,-902.001101,0.00013189,2]
[323180531,1713780647275,-70609.17582008,0.00013189,2]
[323180536,1713780647311,-1564.99174126,0.00013189,2]
[323180544,1713780647376,-325.16137984,0.00013189,2]
[323180879,1713780661144,300.0,0.000121,4]
[323180880,1713780663217,700.0,0.000122,4]
[323180881,1713780665293,1000.0,0.000123,4]
[323180882,1713780668550,1400.0,0.000124,4]
[323180883,1713780670041,1700.0,0.000125,4]
[323180884,1713780672210,300.0,0.000126,4]
[323180885,1713780674281,300.0,0.000127,4]
[323180886,1713780676313,300.0,0.000128,4]
[323180887,1713780678384,150.0,0.00010049,2]
[323180888,1713780678405,21.96,0.00010049,2]
[323180889,1713780678440,300.0,0.000129,4]
[323180890,1713780679239,150.0,0.00011054,2]
[323180891,1713780679260,21.96,0.00011054,2]
[323180892,1713780680539,809.0,0.000149,5]
[323180928,1713780860488,187.15725716,0.00015,15]
[323180929,1713780888013,5350.0,0.00016,10]
[323180930,1713780893524,5350.0,0.00016,11]
[323180931,1713780898260,5350.0,0.00016,12]
[323180932,1713780903249,5350.0,0.00016,13]
[323180933,1713780909399,4844.15831617,0.00016,15]
[323180934,1713780933174,2350.0,0.00016,22]
[323180935,1713780938787,91.5316516,0.00016,24]
[323180936,1713780958443,5350.0,0.00015,9]
[323180937,1713780964638,505.84168383,0.00015,15]
[323180938,1713780970217,5350.0,0.00015,16]
[323180939,1713780976097,5208.4683484,0.00015,24]
[323180940,1713780981594,715.7,0.00015,25]
[323180941,1713780995253,5300.0,0.00015,3]
[323180942,1713781049751,150.0,9.721e-05,2]
[323180943,1713781049774,150.0,9.721e-05,2]
[323180944,1713781049796,150.0,9.721e-05,2]
[323180945,1713781050123,150.0,9.721e-05,2]
[323180946,1713781050155,150.0,9.721e-05,2]
[323180947,1713781050176,150.0,9.721e-05,2]
[323180948,1713781050195,150.0,9.721e-05,2]
[323180949,1713781050217,150.0,9.721e-05,2]
[323180950,1713781050237,150.0,9.721e-05,2]
[323180951,1713781050257,150.0,9.721e-05,2]
[323180952,1713781050278,129.02,9.721e-05,2]
[323180964,1713781105257,150.0,9.721e-05,2]
[323180965,1713781105278,150.0,9.721e-05,2]
[323180966,1713781105298,150.0,9.721e-05,2]
[323180967,1713781105320,150.0,9.721e-05,2]
[323180968,1713781105343,150.0,9.721e-05,2]
[323180969,1713781105365,450.0,9.721e-05,2]
[323180971,1713781155698,171.96,9.29e-05,2]
[323180972,1713781155891,171.96,0.00010839,2]
[323180973,1713781316313,150.0,0.00010839,2]
[323180974,1713781316340,150.0,0.00010839,2]
[323180975,1713781316370,19.83502146,0.00010839,2]
[323180976,1713781332197,150.0,0.00010839,2]
[323180977,1713781332217,145.55181488,0.00010839,2]
[323180978,1713781350644,150.0,0.00010839,2]
[323180979,1713781350667,150.0,0.00010839,2]
[323180980,1713781350687,150.0,0.00010839,2]
[323180981,1713781350708,150.0,0.00010839,2]
[323180982,1713781350729,150.0,0.00010839,2]
[323180983,1713781350752,150.0,0.00010839,2]
[323180984,1713781350772,64.51836797,0.00010839,2]
[323180985,1713781368655,150.0,0.00010839,2]
[323180986,1713781368677,150.0,0.00010839,2]
[323180987,1713781368699,150.0,0.00010839,2]
[323180988,1713781368721,150.0,0.00010839,2]
[323180989,1713781368749,150.0,0.00010839,2]
[323180990,1713781368770,112.04281519,0.00010839,2]
[323180992,1713781381620,14563.15145915,0.00010839,2]
[323180993,1713781383194,150.0,0.00010569,2]
[323180994,1713781383214,0.13687288,0.00010569,2]
[323180995,1713781399547,150.0,0.00010839,2]
[323180996,1713781399567,5.22181752,0.00010839,2]
[323180997,1713781399729,144.77818248,0.00010839,2]
[323180998,1713781399751,143.65114109,0.00010839,2]
[323180999,1713781403067,408.44629625,0.00010839,2]
[323181000,1713781404767,150.0,0.00010839,2]
[323181001,1713781404789,150.0,0.00010839,2]
[323181002,1713781404811,61.19639393,0.00010839,2]
[323181003,1713781405740,150.0,0.00010839,2]